[Event "Live Chess"]
[Site "Chess.com"]
[Date "2024.06.02"]
[Round "-"]
[White "Pandreq"]
[Black "Zhevzh1k7"]
[Result "1-0"]
[WhiteElo "1227"]
[BlackElo "1122"]
[TimeControl "300"]
[EndTime "8:48:43 PDT"]
[Termination "Pandreq won by resignation"]

1. d4 {[%clk 0:04:57.4]} 1... Nf6 {[%clk 0:04:57.4]} 2. c4 {[%clk 0:04:55.8]}
2... e6 {[%clk 0:04:55.7]} 3. Nc3 {[%clk 0:04:55.3]} 3... d5 {[%clk 0:04:52.6]}
4. cxd5 {[%clk 0:04:53.7]} 4... exd5 {[%clk 0:04:51]} 5. Bf4 {[%clk 0:04:52]}
5... Nc6 {[%clk 0:04:47.9]} 6. e3 {[%clk 0:04:51.5]} 6... Bd6 {[%clk 0:04:46.1]}
7. Bxd6 {[%clk 0:04:50]} 7... Qxd6 {[%clk 0:04:46]} 8. Rb1 {[%clk 0:04:40.1]}
8... Bf5 {[%clk 0:04:43]} 9. Bd3 {[%clk 0:04:39.2]} 9... Bxd3 {[%clk 0:04:40.2]}
10. Qxd3 {[%clk 0:04:38.4]} 10... O-O {[%clk 0:04:37.8]} 11. Nb5 {[%clk
0:04:36.8]} 11... Qb4+ {[%clk 0:04:33]} 12. Nc3 {[%clk 0:04:21.3]} 12... Ne4
{[%clk 0:04:26.6]} 13. Ne2 {[%clk 0:04:18.5]} 13... Rfe8 {[%clk 0:04:18]} 14.
O-O {[%clk 0:04:16.4]} 14... Nxc3 {[%clk 0:04:15]} 15. Nxc3 {[%clk 0:04:15.2]}
15... Qa5 {[%clk 0:04:04.7]} 16. Qf5 {[%clk 0:04:11.5]} 16... Rad8 {[%clk
0:03:57]} 17. a3 {[%clk 0:03:55.2]} 17... Qb6 {[%clk 0:03:51.4]} 18. Nxd5 {[%clk
0:03:47.5]} 18... Qb5 {[%clk 0:03:38.3]} 19. Nf6+ {[%clk 0:03:35.2]} 19... gxf6
{[%clk 0:03:33.8]} 20. Qxb5 {[%clk 0:03:33.9]} 1-0

[Event "Live Chess"]
[Site "Chess.com"]
[Date "2024.06.02"]
[Round "-"]
[White "CheckThis4"]
[Black "Ferrarifan27"]
[Result "1/2-1/2"]
[WhiteElo "2675"]
[BlackElo "2153"]
[TimeControl "300"]
[EndTime "8:48:51 PDT"]
[Termination "Game drawn by repetition"]

1. d4 {[%clk 0:04:58.1]} 1... Nf6 {[%clk 0:04:58.4]} 2. Nc3 {[%clk 0:04:57.2]}
2... e6 {[%clk 0:04:57.5]} 3. e4 {[%clk 0:04:57.1]} 3... Bb4 {[%clk 0:04:54.2]}
4. e5 {[%clk 0:04:56.2]} 4... Nd5 {[%clk 0:04:52.7]} 5. Bd2 {[%clk 0:04:55.7]}
5... Nxc3 {[%clk 0:04:51.5]} 6. bxc3 {[%clk 0:04:55]} 6... Be7 {[%clk
0:04:50.6]} 7. Qg4 {[%clk 0:04:54.1]} 7... O-O {[%clk 0:04:49.6]} 8. Bd3 {[%clk
0:04:53.3]} 8... Re8 {[%clk 0:04:44.9]} 9. Nf3 {[%clk 0:04:51.4]} 9... d6 {[%clk
0:04:38.2]} 10. h4 {[%clk 0:04:50.2]} 10... dxe5 {[%clk 0:04:36.8]} 11. dxe5
{[%clk 0:04:49.4]} 11... Nc6 {[%clk 0:04:33.2]} 12. Bxh7+ {[%clk 0:04:43.8]}
12... Kxh7 {[%clk 0:04:31.9]} 13. Ng5+ {[%clk 0:04:43.4]} 13... Bxg5 {[%clk
0:04:25.6]} 14. hxg5+ {[%clk 0:04:41.9]} 14... Kg8 {[%clk 0:04:20.6]} 15. Qh5
{[%clk 0:04:41.4]} 15... Kf8 {[%clk 0:04:19.6]} 16. Qh8+ {[%clk 0:04:31]} 16...
Ke7 {[%clk 0:04:18.2]} 17. Qxg7 {[%clk 0:04:30.5]} 17... Rg8 {[%clk 0:04:11.7]}
18. Qf6+ {[%clk 0:04:25]} 18... Ke8 {[%clk 0:04:10.8]} 19. Qf4 {[%clk 0:04:24]}
19... Ne7 {[%clk 0:04:03.7]} 20. O-O-O {[%clk 0:04:19.8]} 20... Nd5 {[%clk
0:04:00.3]} 21. Qe4 {[%clk 0:04:16.6]} 21... Qe7 {[%clk 0:03:58.1]} 22. c4
{[%clk 0:04:05.5]} 22... Qa3+ {[%clk 0:03:45]} 23. Kb1 {[%clk 0:04:03.6]} 23...
Nb4 {[%clk 0:03:41.4]} 24. Bxb4 {[%clk 0:03:57.1]} 24... Qxb4+ {[%clk
0:03:40.4]} 25. Kc1 {[%clk 0:03:55.6]} 25... Qa3+ {[%clk 0:03:39.4]} 26. Kb1
{[%clk 0:03:54.9]} 26... Qb4+ {[%clk 0:03:38.5]} 27. Kc1 {[%clk 0:03:52.6]}
27... Qa3+ {[%clk 0:03:37.1]} 28. Kb1 {[%clk 0:03:51.5]} 28... Qb4+ {[%clk
0:03:36]} 1/2-1/2

[Event "Live Chess"]
[Site "Chess.com"]
[Date "2024.06.02"]
[Round "-"]
[White "ACM42"]
[Black "HoarseyHorsey"]
[Result "1-0"]
[WhiteElo "2149"]
[BlackElo "1568"]
[TimeControl "300"]
[EndTime "8:48:56 PDT"]
[Termination "ACM42 won by resignation"]

1. e4 {[%clk 0:04:59.3]} 1... c5 {[%clk 0:04:59.1]} 2. Nf3 {[%clk 0:04:58.6]}
2... e6 {[%clk 0:04:58.6]} 3. d4 {[%clk 0:04:58.5]} 3... cxd4 {[%clk 0:04:58.2]}
4. Nxd4 {[%clk 0:04:58.2]} 4... Nf6 {[%clk 0:04:57.8]} 5. Nc3 {[%clk 0:04:57.4]}
5... Nc6 {[%clk 0:04:57.5]} 6. Nxc6 {[%clk 0:04:56.1]} 6... bxc6 {[%clk
0:04:57.4]} 7. e5 {[%clk 0:04:55.6]} 7... Nd5 {[%clk 0:04:56.3]} 8. Ne4 {[%clk
0:04:54.9]} 8... Qc7 {[%clk 0:04:40.3]} 9. f4 {[%clk 0:04:53.5]} 9... Be7 {[%clk
0:04:35.9]} 10. Bc4 {[%clk 0:04:48.4]} 10... O-O {[%clk 0:04:34]} 11. O-O {[%clk
0:04:47.1]} 11... d6 {[%clk 0:04:26.8]} 12. exd6 {[%clk 0:04:45.3]} 12... Bxd6
{[%clk 0:04:26.7]} 13. Nxd6 {[%clk 0:04:44]} 13... Qxd6 {[%clk 0:04:25.8]} 14.
Bb3 {[%clk 0:04:42]} 14... Ba6 {[%clk 0:04:23.5]} 15. c4 {[%clk 0:04:40.1]}
15... Rad8 {[%clk 0:04:15.6]} 16. cxd5 {[%clk 0:04:35.1]} 16... Bxf1 {[%clk
0:04:13.8]} 17. Qxf1 {[%clk 0:04:32.2]} 17... cxd5 {[%clk 0:04:11.8]} 18. Be3
{[%clk 0:04:26.2]} 18... Rc8 {[%clk 0:04:09.3]} 19. Rd1 {[%clk 0:04:19.6]} 19...
Rc7 {[%clk 0:04:07]} 20. Bd4 {[%clk 0:04:17.8]} 20... Rfc8 {[%clk 0:04:01.9]}
21. Be5 {[%clk 0:04:16.5]} 21... Qc6 {[%clk 0:03:57.3]} 22. Bxc7 {[%clk
0:04:13.7]} 22... Rxc7 {[%clk 0:03:57.2]} 23. h3 {[%clk 0:04:05.8]} 23... a5
{[%clk 0:03:50.1]} 24. a3 {[%clk 0:03:46.4]} 24... a4 {[%clk 0:03:45]} 25. Ba2
{[%clk 0:03:45.7]} 25... Qc5+ {[%clk 0:03:44.3]} 26. Kh1 {[%clk 0:03:43.6]}
26... d4 {[%clk 0:03:41]} 27. f5 {[%clk 0:03:41.6]} 27... e5 {[%clk 0:03:40.2]}
28. f6 {[%clk 0:03:39]} 28... g6 {[%clk 0:03:39.1]} 29. Qe1 {[%clk 0:03:24.3]}
29... Rc6 {[%clk 0:03:30.5]} 30. Qf1 {[%clk 0:03:05.8]} 30... Qd6 {[%clk
0:03:27.2]} 31. Re1 {[%clk 0:02:58.4]} 31... Qc5 {[%clk 0:03:20.1]} 32. Bb1
{[%clk 0:02:56.4]} 32... Qb6 {[%clk 0:03:16.7]} 33. Rxe5 {[%clk 0:02:47.3]}
33... Re6 {[%clk 0:03:15.8]} 34. Rxe6 {[%clk 0:02:45.2]} 1-0

[Event "Live Chess"]
[Site "Chess.com"]
[Date "2024.06.02"]
[Round "-"]
[White "TigerTank70"]
[Black "davigator"]
[Result "1-0"]
[WhiteElo "2188"]
[BlackElo "2326"]
[TimeControl "300"]
[EndTime "8:48:59 PDT"]
[Termination "TigerTank70 won by resignation"]

1. e4 {[%clk 0:04:58.2]} 1... c5 {[%clk 0:04:58.1]} 2. d4 {[%clk 0:04:56.6]}
2... cxd4 {[%clk 0:04:56.4]} 3. c3 {[%clk 0:04:55.8]} 3... Nf6 {[%clk
0:04:53.7]} 4. e5 {[%clk 0:04:54.4]} 4... Nd5 {[%clk 0:04:52.6]} 5. Bc4 {[%clk
0:04:54]} 5... Nb6 {[%clk 0:04:50]} 6. Bb3 {[%clk 0:04:52.8]} 6... d5 {[%clk
0:04:48.6]} 7. cxd4 {[%clk 0:04:50.9]} 7... Nc6 {[%clk 0:04:46.7]} 8. Nc3 {[%clk
0:04:48.8]} 8... Bf5 {[%clk 0:04:44.6]} 9. Nge2 {[%clk 0:04:37.2]} 9... e6
{[%clk 0:04:44.5]} 10. Ng3 {[%clk 0:04:35.6]} 10... Bg6 {[%clk 0:04:42.7]} 11.
h4 {[%clk 0:04:34.7]} 11... h6 {[%clk 0:04:41.8]} 12. h5 {[%clk 0:04:32.3]}
12... Bh7 {[%clk 0:04:41]} 13. Be3 {[%clk 0:04:24.3]} 13... Be7 {[%clk
0:04:39.3]} 14. O-O {[%clk 0:04:20.6]} 14... O-O {[%clk 0:04:38.3]} 15. Rc1
{[%clk 0:04:00.4]} 15... Rc8 {[%clk 0:04:36.9]} 16. Na4 {[%clk 0:03:43.7]} 16...
Nxa4 {[%clk 0:04:32.7]} 17. Bxa4 {[%clk 0:03:43.6]} 17... Qb6 {[%clk 0:04:29.6]}
18. Bb3 {[%clk 0:03:25.6]} 18... Na5 {[%clk 0:04:24.6]} 19. Qg4 {[%clk
0:02:58.4]} 19... Kh8 {[%clk 0:04:21.8]} 20. Rxc8 {[%clk 0:02:46.4]} 20... Rxc8
{[%clk 0:04:19.9]} 21. Bxd5 {[%clk 0:02:36.2]} 21... Qxb2 {[%clk 0:04:10.8]} 22.
Bxe6 {[%clk 0:02:18.1]} 22... fxe6 {[%clk 0:04:09.1]} 23. Qxe6 {[%clk 0:02:18]}
23... Re8 {[%clk 0:04:08.1]} 24. Qf7 {[%clk 0:02:03.5]} 24... Qb5 {[%clk
0:04:06.6]} 25. d5 {[%clk 0:02:00.8]} 25... Bg8 {[%clk 0:04:05.5]} 26. Qg6
{[%clk 0:01:47.3]} 26... Qxd5 {[%clk 0:04:04.3]} 27. Qxe8 {[%clk 0:01:44]} 27...
Qe6 {[%clk 0:03:58]} 28. Qg6 {[%clk 0:01:25.9]} 28... Qxe5 {[%clk 0:03:54.3]}
29. Nf5 {[%clk 0:01:20]} 29... Bf6 {[%clk 0:03:52.1]} 30. Bd4 {[%clk 0:01:07.5]}
30... Qe6 {[%clk 0:03:41.6]} 31. Nxg7 {[%clk 0:00:45.6]} 31... Qf7 {[%clk
0:03:35.6]} 32. Qxh6+ {[%clk 0:00:40.1]} 32... Bh7 {[%clk 0:03:34.3]} 33. Bxf6
{[%clk 0:00:39.8]} 33... Kg8 {[%clk 0:03:32.5]} 34. Qg5 {[%clk 0:00:34.7]} 1-0

[Event "Live Chess"]
[Site "Chess.com"]
[Date "2024.06.02"]
[Round "-"]
[White "friarnator"]
[Black "MagnersCarlsberg2870"]
[Result "1-0"]
[WhiteElo "2211"]
[BlackElo "1745"]
[TimeControl "300"]
[EndTime "8:49:03 PDT"]
[Termination "friarnator won by resignation"]

1. d4 {[%clk 0:04:58.5]} 1... d5 {[%clk 0:04:58.1]} 2. Nc3 {[%clk 0:04:57.9]}
2... Nf6 {[%clk 0:04:55.5]} 3. Bf4 {[%clk 0:04:57.2]} 3... c6 {[%clk 0:04:53]}
4. e3 {[%clk 0:04:56.4]} 4... Bf5 {[%clk 0:04:47.9]} 5. f3 {[%clk 0:04:55.5]}
5... h6 {[%clk 0:04:44.9]} 6. g4 {[%clk 0:04:54.7]} 6... Bh7 {[%clk 0:04:43.6]}
7. Bd3 {[%clk 0:04:54.1]} 7... Bxd3 {[%clk 0:04:42]} 8. Qxd3 {[%clk 0:04:54]}
8... g5 {[%clk 0:04:40.8]} 9. Bg3 {[%clk 0:04:48.1]} 9... Nbd7 {[%clk
0:04:39.9]} 10. O-O-O {[%clk 0:04:47.2]} 10... e6 {[%clk 0:04:39.1]} 11. h4
{[%clk 0:04:45.5]} 11... Bg7 {[%clk 0:04:35.8]} 12. Nge2 {[%clk 0:04:40.2]}
12... c5 {[%clk 0:04:28.9]} 13. dxc5 {[%clk 0:04:37.6]} 13... Nxc5 {[%clk
0:04:25.1]} 14. Qb5+ {[%clk 0:04:36.1]} 14... Ncd7 {[%clk 0:04:21.1]} 15. hxg5
{[%clk 0:04:27.2]} 15... hxg5 {[%clk 0:04:17.8]} 16. Rxh8+ {[%clk 0:04:27.1]}
16... Bxh8 {[%clk 0:04:00.5]} 17. Rh1 {[%clk 0:04:27]} 17... Bg7 {[%clk
0:03:58.9]} 18. Qxb7 {[%clk 0:04:12]} 18... Rb8 {[%clk 0:03:57.5]} 19. Bxb8
{[%clk 0:04:09.7]} 19... Nxb8 {[%clk 0:03:55.3]} 20. Qb4 {[%clk 0:03:47.6]}
20... a5 {[%clk 0:03:46.2]} 21. Qc5 {[%clk 0:03:40.1]} 21... Nbd7 {[%clk
0:03:42.9]} 22. Qd6 {[%clk 0:03:36.2]} 22... Bf8 {[%clk 0:03:40.3]} 23. Qa6
{[%clk 0:03:33.5]} 23... Qb8 {[%clk 0:03:32.9]} 24. Nd4 {[%clk 0:03:17.8]} 1-0

[Event "Live Chess"]
[Site "Chess.com"]
[Date "2024.06.02"]
[Round "-"]
[White "Dashman93"]
[Black "RamsayFlayer"]
[Result "0-1"]
[WhiteElo "2137"]
[BlackElo "1958"]
[TimeControl "300"]
[EndTime "8:49:11 PDT"]
[Termination "RamsayFlayer won by resignation"]

1. e4 {[%clk 0:04:59.7]} 1... e5 {[%clk 0:04:58.3]} 2. Bc4 {[%clk 0:04:59]} 2...
Nf6 {[%clk 0:04:54.7]} 3. Nc3 {[%clk 0:04:58.2]} 3... Nxe4 {[%clk 0:04:51.3]} 4.
Qh5 {[%clk 0:04:56.6]} 4... Nd6 {[%clk 0:04:47.5]} 5. Qxe5+ {[%clk 0:04:55.8]}
5... Qe7 {[%clk 0:04:46.1]} 6. Qxe7+ {[%clk 0:04:55.3]} 6... Bxe7 {[%clk
0:04:46]} 7. Bb3 {[%clk 0:04:54.9]} 7... c6 {[%clk 0:04:31.7]} 8. Nf3 {[%clk
0:04:54.8]} 8... O-O {[%clk 0:04:28.3]} 9. d4 {[%clk 0:04:53.9]} 9... Nf5 {[%clk
0:04:21.8]} 10. Bf4 {[%clk 0:04:52]} 10... d5 {[%clk 0:04:18.6]} 11. O-O-O
{[%clk 0:04:51.2]} 11... Bd6 {[%clk 0:04:16.4]} 12. Be5 {[%clk 0:04:47.2]} 12...
Nd7 {[%clk 0:04:04.9]} 13. g4 {[%clk 0:04:43]} 13... Bxe5 {[%clk 0:03:51]} 14.
dxe5 {[%clk 0:04:42.1]} 14... Ne7 {[%clk 0:03:42.4]} 15. Rhe1 {[%clk 0:04:38.7]}
15... Nc5 {[%clk 0:03:40.6]} 16. h3 {[%clk 0:04:37.3]} 16... Nxb3+ {[%clk
0:03:39.1]} 17. axb3 {[%clk 0:04:36.8]} 17... Ng6 {[%clk 0:03:37]} 18. Nd4
{[%clk 0:04:35]} 18... Re8 {[%clk 0:03:33]} 19. Re3 {[%clk 0:04:26.7]} 19...
Rxe5 {[%clk 0:03:13.6]} 20. Rxe5 {[%clk 0:04:24]} 20... Nxe5 {[%clk 0:03:12.5]}
21. Re1 {[%clk 0:04:23.9]} 21... f6 {[%clk 0:03:11.9]} 22. f4 {[%clk 0:04:22.7]}
22... Ng6 {[%clk 0:03:04.8]} 23. Re8+ {[%clk 0:04:18.4]} 23... Kf7 {[%clk
0:03:03.5]} 24. Rd8 {[%clk 0:04:17]} 24... Nxf4 {[%clk 0:02:57.5]} 25. Nf5
{[%clk 0:04:05.9]} 25... Bxf5 {[%clk 0:01:52.5]} 26. Rxa8 {[%clk 0:03:48.3]}
26... Be6 {[%clk 0:01:50]} 27. Rxa7 {[%clk 0:03:46.5]} 27... Nxh3 {[%clk
0:01:49.3]} 28. Rxb7+ {[%clk 0:03:45.5]} 28... Kg6 {[%clk 0:01:48.3]} 29. Rc7
{[%clk 0:03:39.7]} 29... Bxg4 {[%clk 0:01:46.3]} 30. Rxc6 {[%clk 0:03:39.1]}
30... Nf4 {[%clk 0:01:37.6]} 31. Rd6 {[%clk 0:03:36.9]} 31... Bf3 {[%clk
0:01:32.9]} 32. b4 {[%clk 0:03:34.7]} 32... h5 {[%clk 0:01:31.2]} 33. b5 {[%clk
0:03:32.7]} 33... h4 {[%clk 0:01:30]} 34. Rd8 {[%clk 0:03:25.5]} 34... h3 {[%clk
0:01:26.8]} 35. Rh8 {[%clk 0:03:24.6]} 35... Nh5 {[%clk 0:01:18.4]} 36. Nxd5
{[%clk 0:03:17.6]} 36... Bxd5 {[%clk 0:01:15.3]} 0-1

[Event "Live Chess"]
[Site "Chess.com"]
[Date "2024.06.02"]
[Round "-"]
[White "hapehansen"]
[Black "f4nomore"]
[Result "1-0"]
[WhiteElo "2249"]
[BlackElo "1294"]
[TimeControl "300"]
[EndTime "8:49:16 PDT"]
[Termination "hapehansen won by resignation"]

1. Nf3 {[%clk 0:04:56.4]} 1... g6 {[%clk 0:04:59.9]} 2. c4 {[%clk 0:04:53.9]}
2... Bg7 {[%clk 0:04:59.8]} 3. d4 {[%clk 0:04:52]} 3... d6 {[%clk 0:04:59.7]} 4.
Nc3 {[%clk 0:04:50.2]} 4... Nf6 {[%clk 0:04:58.3]} 5. g3 {[%clk 0:04:46.1]} 5...
O-O {[%clk 0:04:56.9]} 6. Bg2 {[%clk 0:04:45.6]} 6... Nbd7 {[%clk 0:04:55.6]} 7.
O-O {[%clk 0:04:45.1]} 7... a6 {[%clk 0:04:53.8]} 8. e4 {[%clk 0:04:41.9]} 8...
Rb8 {[%clk 0:04:52.8]} 9. h3 {[%clk 0:04:35]} 9... b5 {[%clk 0:04:51.1]} 10.
cxb5 {[%clk 0:04:31.3]} 10... axb5 {[%clk 0:04:49.3]} 11. e5 {[%clk 0:04:20.8]}
11... dxe5 {[%clk 0:04:45.8]} 12. dxe5 {[%clk 0:04:18.6]} 12... b4 {[%clk
0:04:32.4]} 13. exf6 {[%clk 0:03:54.2]} 13... Nxf6 {[%clk 0:04:29.6]} 14. Qxd8
{[%clk 0:03:40.7]} 14... Rxd8 {[%clk 0:04:27.4]} 15. Na4 {[%clk 0:03:38.9]}
15... Ba6 {[%clk 0:04:18.2]} 16. Re1 {[%clk 0:03:31.7]} 16... e6 {[%clk
0:04:08.9]} 17. Nc5 {[%clk 0:03:27]} 17... Bc4 {[%clk 0:04:01.6]} 18. Ne5 {[%clk
0:03:21.9]} 18... Bd5 {[%clk 0:03:49]} 19. Nc6 {[%clk 0:03:20]} 19... Bxc6
{[%clk 0:03:40.4]} 20. Bxc6 {[%clk 0:03:19.9]} 20... Nd5 {[%clk 0:03:24.9]} 21.
Bg5 {[%clk 0:03:09.3]} 21... Rd6 {[%clk 0:03:20.4]} 22. Bxd5 {[%clk 0:02:54.5]}
22... Rxd5 {[%clk 0:03:16.8]} 23. Ne4 {[%clk 0:02:53.6]} 23... Bxb2 {[%clk
0:03:03.6]} 24. Rab1 {[%clk 0:02:45.6]} 24... Bg7 {[%clk 0:03:00.9]} 25. Nf6+
{[%clk 0:02:43.3]} 25... Bxf6 {[%clk 0:02:51.9]} 26. Bxf6 {[%clk 0:02:43.2]}
26... h5 {[%clk 0:02:48.2]} 27. Be5 {[%clk 0:02:27.1]} 27... Rbb5 {[%clk
0:02:40.9]} 28. Bxc7 {[%clk 0:02:23.2]} 28... Rd3 {[%clk 0:02:38.5]} 29. Re5
{[%clk 0:02:14.5]} 29... Rb7 {[%clk 0:02:31.4]} 30. Rc5 {[%clk 0:02:12]} 30...
b3 {[%clk 0:02:27.6]} 31. axb3 {[%clk 0:02:07.4]} 31... Rbxb3 {[%clk 0:02:24.6]}
32. Rxb3 {[%clk 0:02:01.1]} 32... Rxb3 {[%clk 0:02:22.8]} 33. Be5 {[%clk
0:02:00.7]} 33... Rb1+ {[%clk 0:02:17.4]} 34. Kg2 {[%clk 0:01:58.2]} 34... Rb7
{[%clk 0:02:12.1]} 35. Rc8+ {[%clk 0:01:54.7]} 1-0

[Event "Live Chess"]
[Site "Chess.com"]
[Date "2024.06.02"]
[Round "-"]
[White "TheSmoulderingMaster"]
[Black "goldinspiredphoenix"]
[Result "0-1"]
[WhiteElo "1771"]
[BlackElo "1494"]
[TimeControl "300"]
[EndTime "8:49:24 PDT"]
[Termination "goldinspiredphoenix won by resignation"]

1. e4 {[%clk 0:04:57.4]} 1... e5 {[%clk 0:04:59]} 2. Nf3 {[%clk 0:04:56]} 2...
Nc6 {[%clk 0:04:56.6]} 3. Bb5 {[%clk 0:04:54.8]} 3... d6 {[%clk 0:04:54.7]} 4.
O-O {[%clk 0:04:52.9]} 4... Nf6 {[%clk 0:04:52.9]} 5. h3 {[%clk 0:04:52.2]} 5...
Be7 {[%clk 0:04:51.6]} 6. c3 {[%clk 0:04:51.5]} 6... Nxe4 {[%clk 0:04:47.8]} 7.
Re1 {[%clk 0:04:49.3]} 7... Nf6 {[%clk 0:04:46.3]} 8. d4 {[%clk 0:04:48]} 8...
exd4 {[%clk 0:04:40.5]} 9. cxd4 {[%clk 0:04:46.5]} 9... O-O {[%clk 0:04:37.4]}
10. Bg5 {[%clk 0:04:38.9]} 10... a6 {[%clk 0:04:35]} 11. Ba4 {[%clk 0:04:36]}
11... h6 {[%clk 0:04:26.3]} 12. Bh4 {[%clk 0:04:33.9]} 12... b5 {[%clk
0:04:10.1]} 13. Bb3 {[%clk 0:04:29.5]} 13... Bb7 {[%clk 0:04:08.1]} 14. Nc3
{[%clk 0:04:27.1]} 14... Nb8 {[%clk 0:04:06]} 15. d5 {[%clk 0:04:19.1]} 15...
Nbd7 {[%clk 0:04:03.4]} 16. Qe2 {[%clk 0:04:15.4]} 16... Re8 {[%clk 0:04:00.8]}
17. Qd3 {[%clk 0:04:10.5]} 17... Nc5 {[%clk 0:03:57.6]} 18. Qc2 {[%clk 0:04:08]}
18... Nxb3 {[%clk 0:03:55.2]} 19. Qxb3 {[%clk 0:04:06.8]} 19... Qd7 {[%clk
0:03:52]} 20. Rad1 {[%clk 0:04:01.3]} 20... Nh5 {[%clk 0:03:40.2]} 21. Nd4
{[%clk 0:03:44.6]} 21... Bxh4 {[%clk 0:03:29.4]} 22. Qc2 {[%clk 0:03:36.1]}
22... Bf6 {[%clk 0:03:25.5]} 23. Nf5 {[%clk 0:03:31]} 23... Bxc3 {[%clk
0:03:17.1]} 24. bxc3 {[%clk 0:03:29.4]} 24... Nf6 {[%clk 0:03:09.3]} 25. Qd3
{[%clk 0:03:24]} 25... Bxd5 {[%clk 0:03:01.6]} 26. Re3 {[%clk 0:03:20]} 26...
Be4 {[%clk 0:02:57.5]} 27. Rxe4 {[%clk 0:03:15.3]} 27... Nxe4 {[%clk 0:02:55.5]}
28. g4 {[%clk 0:03:07.1]} 28... Qc6 {[%clk 0:02:46]} 29. Qf3 {[%clk 0:03:03.9]}
29... Qxc3 {[%clk 0:02:39.4]} 30. Qf4 {[%clk 0:02:59.4]} 30... Qe5 {[%clk
0:02:34.2]} 31. Nxh6+ {[%clk 0:02:53.7]} 31... gxh6 {[%clk 0:02:31.2]} 32. Qxh6
{[%clk 0:02:52.5]} 32... Qg5 {[%clk 0:02:28.1]} 33. Qxg5+ {[%clk 0:02:34.6]}
33... Nxg5 {[%clk 0:02:25.8]} 34. Rd5 {[%clk 0:02:33.5]} 34... Nxh3+ {[%clk
0:02:23.5]} 35. Kg2 {[%clk 0:02:32.2]} 35... Nf4+ {[%clk 0:02:21.6]} 0-1

[Event "Live Chess"]
[Site "Chess.com"]
[Date "2024.06.02"]
[Round "-"]
[White "Pablo_dmp"]
[Black "Ginger_GM"]
[Result "0-1"]
[WhiteElo "1987"]
[BlackElo "2666"]
[TimeControl "300"]
[EndTime "8:49:26 PDT"]
[Termination "Ginger_GM won by resignation"]

1. e4 {[%clk 0:04:59]} 1... c5 {[%clk 0:04:58.5]} 2. a3 {[%clk 0:04:57.1]} 2...
g6 {[%clk 0:04:57]} 3. Bc4 {[%clk 0:04:56.3]} 3... Bg7 {[%clk 0:04:56.2]} 4. Nc3
{[%clk 0:04:55.8]} 4... Nc6 {[%clk 0:04:55.6]} 5. d3 {[%clk 0:04:53.8]} 5... e6
{[%clk 0:04:54.8]} 6. Ba2 {[%clk 0:04:52.2]} 6... Nge7 {[%clk 0:04:53.7]} 7. h4
{[%clk 0:04:25.9]} 7... h6 {[%clk 0:04:51.7]} 8. h5 {[%clk 0:04:24.1]} 8... g5
{[%clk 0:04:47.8]} 9. f4 {[%clk 0:04:21.4]} 9... gxf4 {[%clk 0:04:46.5]} 10.
Bxf4 {[%clk 0:04:20.1]} 10... d5 {[%clk 0:04:44.5]} 11. Qg4 {[%clk 0:04:07.6]}
11... Bxc3+ {[%clk 0:04:38.2]} 12. bxc3 {[%clk 0:04:04.4]} 12... e5 {[%clk
0:04:36.6]} 13. Qg7 {[%clk 0:03:52]} 13... Rg8 {[%clk 0:04:35.2]} 14. Qh7 {[%clk
0:03:47.8]} 14... exf4 {[%clk 0:04:31.8]} 15. Nf3 {[%clk 0:03:44.5]} 15... Be6
{[%clk 0:04:27.8]} 16. Rb1 {[%clk 0:03:40.2]} 16... Qd7 {[%clk 0:04:23.7]} 17.
Qxh6 {[%clk 0:03:22.8]} 17... O-O-O {[%clk 0:04:20.5]} 18. Qxf4 {[%clk
0:03:20.8]} 18... dxe4 {[%clk 0:04:18.3]} 19. Qxe4 {[%clk 0:03:16.7]} 19... Bxa2
{[%clk 0:04:16.1]} 20. Rb2 {[%clk 0:03:13.5]} 20... Bd5 {[%clk 0:04:14.5]} 21.
Qf4 {[%clk 0:03:07.9]} 21... Rxg2 {[%clk 0:04:12]} 22. Kd1 {[%clk 0:03:00.8]}
22... Rf2 {[%clk 0:04:07.2]} 0-1

[Event "Live Chess"]
[Site "Chess.com"]
[Date "2024.06.02"]
[Round "-"]
[White "Ferrarifan27"]
[Black "ZatixMajor"]
[Result "1-0"]
[WhiteElo "2158"]
[BlackElo "2018"]
[TimeControl "300"]
[EndTime "8:49:27 PDT"]
[Termination "Ferrarifan27 won by resignation"]

1. e4 {[%clk 0:04:59.2]} 1... c5 {[%clk 0:04:59.5]} 2. Nf3 {[%clk 0:04:57.9]}
2... Nc6 {[%clk 0:04:58.7]} 3. b4 {[%clk 0:04:57]} 3... Nxb4 {[%clk 0:04:57.6]}
4. c3 {[%clk 0:04:56]} 4... Nc6 {[%clk 0:04:57.5]} 5. d4 {[%clk 0:04:55.1]} 5...
cxd4 {[%clk 0:04:57.4]} 6. cxd4 {[%clk 0:04:54.5]} 6... e6 {[%clk 0:04:56.8]} 7.
d5 {[%clk 0:04:53.4]} 7... exd5 {[%clk 0:04:54.8]} 8. exd5 {[%clk 0:04:53.3]}
8... Nce7 {[%clk 0:04:54.4]} 9. d6 {[%clk 0:04:52.5]} 9... Ng6 {[%clk
0:04:53.8]} 10. Qe2+ {[%clk 0:04:50.7]} 10... Be7 {[%clk 0:04:46.3]} 11. dxe7
{[%clk 0:04:49.6]} 11... Qxe7 {[%clk 0:04:46.2]} 1-0